Cogmind - Beta 16 @@@ ROGUE MODE // 2025.12.22 @ 22:39:14 Player: albenzo Result: Destroyed by S-10 Pest with Light Assault Rifle Performance ------------- Evolutions (1) 500 Regions Visited (3) 600 Robots Destroyed (34) 170 Value Destroyed (587) 587 Prototype IDs (2) 40 Alien Tech Used (0) 0 Bonus (0) 0 TOTAL SCORE: 1897 Bonus ------- None Cogmind --------- Core Integrity 0/400 Matter 300/300 Energy 100/100 System Corruption 0% Temperature Cool (6) Movement Core (200) Ox3 Location -9/Materials Parts ------- > --- POWER (1) -------- (None) > --- PROPULSION (3) --- (None) > --- UTILITY (3) ------ Medium Storage Unit Advanced Targeting Computer > --- WEAPON (2) ------- (None) > --- INVENTORY (10) --- Ion Engine Light Deuterium Engine Heat Sink Improved Heat Sink Large Matter Pod (46) Structural Scanner Experimental Sensor Array Particle Gun Spread Laser Peak State ------------ > --- POWER ------------ Light Angular Momentum Engine > --- PROPULSION ------- Aluminum Leg Aluminum Leg Aluminum Leg > --- UTILITY ---------- Medium Storage Unit Seismic Detector Advanced Targeting Computer > --- WEAPON ----------- Shotgun Heavy Battle Rifle > --- INVENTORY -------- Ion Engine Light Deuterium Engine Heat Sink Improved Heat Sink Large Matter Pod Structural Scanner Experimental Sensor Array Small Laser Particle Gun Spread Laser [Rating: 21] Favorites ----------- Power Ion Engine Engine Ion Engine Propulsion Aluminum Leg Leg Aluminum Leg Utility Medium Storage Unit Device Seismic Detector Storage Medium Storage Unit Processor Advanced Targeting Computer Protection Light Armor Plating Weapon Medium Laser Energy Gun Medium Laser Ballistic Gun Heavy Battle Rifle Launcher Grenade Launcher Build | -11 -10 -10 -9 ------- Run | Yrd Mat Min Mat Slots Evolved 2 | . . . 2 Power . | . . . . Propulsion 1 | . . . 1 Utility 1 | . . . 1 Weapon . | . . . . Parts Attached 20 | 2 8 8 2 Power 4 | . 2 2 . Engine 4 | . 2 2 . Core . | . . . . Reactor . | . . . . Propulsion 4 | . . 3 1 Treads . | . . . . Leg 4 | . . 3 1 Wheel . | . . . . Hover . | . . . . Flight . | . . . . Utility 6 | 1 4 1 . Device 3 | 1 2 . . Storage 1 | . 1 . . Processor 1 | . . 1 . Hackware . | . . . . Protection 1 | . 1 . . Artifact . | . . . . Weapon 6 | 1 2 2 1 Energy Gun 2 | 1 1 . . Energy Cannon . | . . . . Ballistic Gun 3 | . . 2 1 Ballistic Cannon . | . . . . Launcher 1 | . 1 . . Special Weapon . | . . . . Impact Weapon . | . . . . Slashing Weapon . | . . . . Piercing Weapon . | . . . . Special Melee Weapon . | . . . . Unidentified Prototypes . | . . . . Parts Lost 9 | . . 2 7 Power 1 | . . . 1 Propulsion 3 | . . . 3 Utility 2 | . . 1 1 Weapon 3 | . . 1 2 Highest Loss Streak 7 | . . 1 7 To Critical Strikes 1 | . . . 1 Average Backups 8 | 7 8 9 9 Power 1 | 1 . 1 2 Propulsion 1 | 4 1 1 . Utility 4 | . 3 5 4 Weapon 2 | 1 2 2 2 Tool/Special . | . . . . Unused Backups 25 | 5 8 4 8 Power 3 | 1 1 . 1 Propulsion 7 | 2 4 1 . Utility 8 | 1 1 1 5 Weapon 7 | 1 2 2 2 Tool/Special . | . . . . Average Slot Usage (%) 99 | . 99 100 90 Engine 13 | . 14 14 9 Leg 28 | . 28 28 29 Device 10 | . 13 8 8 Storage 13 | . 14 14 11 Processor 3 | . . 4 11 Energy Gun 20 | . 26 18 . Ballistic Gun 6 | . . 9 20 Peak Build Rating 21 | 8 9 18 21 Average Rating 10 | 6 7 11 18 On Entrance 9 | 6 8 7 18 Avg Prop Armor Cover (%) . | . . . . Naked Turns . | . . . . Heaviest Build 27 | 15 23 25 27 Greatest Support 30 | 20 20 20 30 Greatest Overweight (x) 3 | . 1 1 3 Average Overweight (x) . | . . . . Largest Inventory Capacity 10 | 8 10 10 10 Average Capacity 9 | 8 8 10 10 Most Carried 10 | 8 9 10 10 Average Carried 8 | 7 8 9 9 Final Capacity 10 | 8 10 10 10 Final Carried 10 | 8 9 10 9 Class Distribution -------------------- 78% | Mutant 21% | Scavenger-Mutant Dominant Class ---------------- Mutant | -10/Materials Mutant | -10/Mines Scavenger-Mutant | -9/Materials Resources | -11 -10 -10 -9 ----------- Run | Yrd Mat Min Mat Matter Collected 692 | 220 142 323 7 Remotely . | . . . . Salvage Created 960 | 249 294 417 . Parts 55 | 16 11 28 . Haulers Intercepted 2 | . 2 . . Recyclers Shooed 2 | . 2 . . Parts Field Recycled . | . . . . Retrieved Matter . | . . . . Parts Self-Destructed . | . . . . Prevented . | . . . . Parts Restored . | . . . . Kills | -11 -10 -10 -9 ------- Run | Yrd Mat Min Mat Combat Hostiles Destroyed 20 | . 8 12 . Guns 13 | . 3 10 . AOE 7 | . 5 2 . Classes Destroyed 6 | 2 4 . . Tunneler 9 | 8 . 1 . Hauler 2 | . 2 . . Recycler 2 | 1 . 1 . Watcher 1 | . 1 . . Swarmer 11 | . 5 6 . Grunt 9 | . 3 6 . Best Kill Streak 5 | 4 3 5 . Combat Bots Only 3 | . 3 3 . Max Kills in Single Turn 3 | 1 3 2 . Gunslinging . | . . . . Exploded 2 | . 2 2 . Melee . | . . . . Uniques/NPCs Destroyed . | . . . . Combat | -11 -10 -10 -9 -------- Run | Yrd Mat Min Mat Hostile Shots Fired 206 | . 32 49 125 Missed 57 | . 8 9 40 Hits 149 | . 24 40 85 Projectile 149 | . 24 40 85 Critical Strikes 3 | . . . 3 Damage Taken 1661 | . 318 452 891 Core 549 | . 51 91 407 Absorbed by Shields . | . . . . Regen/Repaired (Parts) 65 | . 65 . . Core Remaining (%) 71 | 100 . 43 . Volleys Fired 80 | 12 35 32 1 Largest 2 | 2 2 2 2 Hottest 100 | 100 100 100 56 Shots Fired 149 | 24 59 64 2 Gun 140 | 24 51 63 2 Cannon . | . . . . Launcher 9 | . 8 1 . Special . | . . . . Kinetic 20 | . . 18 2 Thermal 120 | 24 51 45 . Explosive 9 | . 8 1 . Electromagnetic . | . . . . Robot Hit Streak 18 | 18 8 10 . Robot Miss Streak 7 | . 4 7 3 Penetration Max . | . . . . Secondary Targets 1 | . . 1 . Max Gunslinging Chain 1 | . . 1 . Shots Hit Robots 90 | 18 35 37 . Core Hits 46 | 10 15 21 . Critical Kills . | . . . . Critical Parts Destroyed . | . . . . Critical Strikes 6 | 2 3 1 . Burn 6 | 2 3 1 . Melee Attacks . | . . . . Impact . | . . . . Slashing . | . . . . Piercing . | . . . . Sneak Attacks . | . . . . Combat Hostiles . | . . . . Follow-up Attacks . | . . . . Damage Inflicted 1709 | 222 710 749 28 Guns 1176 | 222 410 544 . Cannons . | . . . . Explosions 505 | . 300 205 . Melee . | . . . . Ramming 28 | . . . 28 Kinetic 203 | . . 203 . Thermal 1058 | 222 410 426 . Explosive 420 | . 300 120 . Electromagnetic . | . . . . Impact . | . . . . Slashing . | . . . . Piercing . | . . . . Highest Corruption . | . . . . Average Corruption . | . . . . Corruption Purged . | . . . . Corruption Blocked . | . . . . Overload Shots . | . . . . Overflow Damage 46 | . 15 31 . Projectiles . | . . . . Explosions 46 | . 15 31 . Melee . | . . . . Knockbacks . | . . . . Impact . | . . . . Kinetic . | . . . . Secondary . | . . . . Self-Inflicted Damage 153 | . 62 91 . Shots 4 | . 2 2 . Rammed . | . . . . Targets Rammed 12 | . . . 12 Kicked 12 | . . . 12 Crushed . | . . . . Highest Temperature 343 | 122 192 343 6 Average Temperature 80 | 54 53 110 6 Received Heat Transfer 387 | . 75 75 237 Effects 5 | . . 5 . Shutdowns 1 | . . 1 . Energy Bleed 3 | . . 3 . Matter Decay 1 | . . 1 . Siege Activations . | . . . . Martial Activations . | . . . . Shielding Activations . | . . . . Robots Disrupted . | . . . . Combat Hostiles . | . . . . Robots Corrupted . | . . . . Combat Hostiles . | . . . . Parts Fried . | . . . . Impact Corruptions . | . . . . Robots Melted . | . . . . Combat Hostiles . | . . . . Parts Melted 6 | 5 . 1 . Heat Transferred 3430 | 814 1443 1173 . Parts Sabotaged . | . . . . Parts Stolen . | . . . . Parts Stripped . | . . . . Power Chain Reactions . | . . . . Alert | -11 -10 -10 -9 ------- Run | Yrd Mat Min Mat Maximum Alert Level . | . . . . Low Security (%) 100 | 100 100 100 100 Level 1 . | . . . . Level 2 . | . . . . Level 3 . | . . . . Level 4 . | . . . . Level 5 . | . . . . High Security . | . . . . Max Security . | . . . . Peak Influence 170 | 15 89 170 9 Initial 25 | . 3 25 9 Average 29 | 1 30 36 . Influence Increases 731 | 45 299 387 . Destroy 0b10 Robot/C 400 | . 160 240 . Destroy 0b10 Robot/NC 70 | 45 15 10 . Destroy Leader 56 | . 26 30 . Successful Hack 37 | . 33 4 . Disable Machine 75 | . 15 60 . Destroy Structure 48 | . 20 28 . Lose Combat Pursuer 45 | . 30 15 . Influence Decreases 731 | 40 238 427 26 Entered New Map 60 | . 2 41 17 Time Decay 640 | 40 236 355 9 Lost Part 11 | . . 11 . Lost Ally 20 | . . 20 . Squads Dispatched 2 | . 1 . 1 Investigation . | . . . . Extermination . | . . . . Reinforcement 2 | . 1 . 1 Assault . | . . . . Garrison . | . . . . Intercept . | . . . . Searches Triggered . | . . . . Construction Impeded . | . . . . Haulers Reinforced . | . . . . Active Scanning Responses . | . . . . Cargo Convoy Interrupts . | . . . . Stealth | -11 -10 -10 -9 --------- Run | Yrd Mat Min Mat Distress Signals 2 | . 2 . . Communications Jammed . | . . . . Distress Signals . | . . . . Times Spotted 39 | . 17 13 9 Peak Tracking Total 6 | . 5 3 6 Tactical Retreats 3 | . 2 1 . Traps | -11 -10 -10 -9 ------- Run | Yrd Mat Min Mat Traps Triggered 1 | . . 1 . Indirectly . | . . . . Trap Hack Attempts . | . . . . Triggered . | . . . . Disarmed . | . . . . Reprogrammed . | . . . . Reused . | . . . . Traps Extracted . | . . . . Installed . | . . . . Triggered . | . . . . Machines | -11 -10 -10 -9 ---------- Run | Yrd Mat Min Mat Machines Disabled 5 | . 1 4 . Max in Single Turn 4 | . 1 4 . Machines Repaired . | . . . . Machines Dismantled . | . . . . Machines Sabotaged . | . . . . Overloaded Fab Kills . | . . . . Hacking | -11 -10 -10 -9 --------- Run | Yrd Mat Min Mat Machines Accessed 12 | . 8 2 2 Terminals 8 | . 6 1 1 Fabricators . | . . . . Repair Stations 2 | . 1 . 1 Recycling Units 1 | . 1 . . Scanalyzers . | . . . . Garrison Access . | . . . . Total Hacks 36 | . 29 2 5 Successful 24 | . 22 2 . Failed 12 | . 7 . 5 Catastrophic 2 | . 1 . 1 Database Lockouts . | . . . . Manual 21 | . 18 . 3 Terminals 26 | . 22 1 3 Fabricators . | . . . . Repair Stations 6 | . 4 . 2 Recycling Units 3 | . 3 . . Scanalyzers . | . . . . Garrison Access . | . . . . Terminal Hacks 9 | . 7 2 . Prototype ID Bank 1 | . 1 . . Open Door 1 | . . 1 . Terminal Index 1 | . 1 . . Locate Traps 1 | . 1 . . Dispatch Records 2 | . 1 1 . Recall Reinforcements 1 | . 1 . . Hauler Manifests 1 | . 1 . . Zone Layout 1 | . 1 . . Fabricator Hacks . | . . . . Repair Station Hacks 4 | . 4 . . Scan Component 2 | . 2 . . Repair 2 | . 2 . . Recycling Unit Hacks . | . . . . Scanalyzer . | . . . . Garrison Access Hacks . | . . . . Unauthorized Hacks 11 | . 11 . . Terminals 9 | . 9 . . Track 1 | . 1 . . Botnet 2 | . 2 . . Operators 1 | . 1 . . Skim 5 | . 5 . . Fabricators . | . . . . Repair Stations . | . . . . Recycling Units 2 | . 2 . . Reject 1 | . 1 . . Mask 1 | . 1 . . Scanalyzers . | . . . . Garrison Access . | . . . . Data Cores Recovered . | . . . . Used . | . . . . Hacking Detections 8 | . 6 . 2 Full Trace Events . | . . . . Feedback Events . | . . . . Feedback Blocked . | . . . . Robot Schematics Acquired . | . . . . Robots Built . | . . . . Authchips . | . . . . Time . | . . . . Total Robot Build Rating . | . . . . Part Schematics Acquired . | . . . . Parts Built . | . . . . Authchips . | . . . . Time . | . . . . Total Part Build Rating . | . . . . Part Studies Acquired . | . . . . Parts Repaired 2 | . 2 . . Time 52 | . 52 . . Parts Recycled . | . . . . Recycled Matter . | . . . . Retrieved Matter . | . . . . Retrieved Components . | . . . . Parts Scanalyzed . | . . . . Part Schematics Acquired . | . . . . Parts Damaged . | . . . . Bothacking | -11 -10 -10 -9 ------------ Run | Yrd Mat Min Mat Used RIF Installer . | . . . . Robots Hacked . | . . . . Non-combat . | . . . . Combat . | . . . . Robot Hacks Applied . | . . . . Relay Couplers Released . | . . . . Fabnet Peak Effective % . | . . . . Robots Rewired . | . . . . Allies Hacked . | . . . . Hacks Repelled . | . . . . Allies | -11 -10 -10 -9 -------- Run | Yrd Mat Min Mat Total Allies 1 | . . 1 . Largest Group 1 | . . 1 . Highest-Rated Group 31 | . . 31 . Highest-Rated Ally 31 | . . 31 . Total Orders . | . . . . Ally Attacks 5 | . . 5 . Total Damage 20 | . . 20 . Kills . | . . . . Allies Corrupted . | . . . . Allies Melted . | . . . . Intel | -11 -10 -10 -9 ------- Run | Yrd Mat Min Mat Active Infowar (turns) 1700 | 6 661 881 152 Terrain 82 | . 82 . . Seismic 1618 | 6 579 881 152 Robot Analysis Total . | . . . . Derelict Logs Recovered 3 | . . 3 . Drone Launches . | . . . . Drone Recoveries . | . . . . Exploration | -11 -10 -10 -9 ------------- Run | Yrd Mat Min Mat Turns Passed 2787 | 231 888 1479 189 Spaces Moved 1232 | 46 489 574 123 Core 5 | . . . 5 Treads . | . . . . Legs 1227 | 46 489 574 118 Wheels . | . . . . Hover . | . . . . Flight . | . . . . Fastest Speed 120 | 120 120 120 120 Average Speed 137 | 120 121 156 123 Slowest Speed 200 | 120 190 190 200 Overloaded Moves . | . . . . Propulsion Burnouts . | . . . . Robots Hopped . | . . . . Potential Cave-ins . | . . . . Cave-ins Triggered . | . . . . Exploration Rate (%) 49 | 4 83 98 14 Regions Visited 3 Branch Regions 1 Pre-discovered Areas 2 | . 1 1 . Known Exits Taken . | . . . . Unknown Exits Taken 3 | 1 1 1 . Scrap Searched 1 | . . 1 . Spaces Dug . | . . . . Terrain Destroyed 61 | . 27 34 . Melee . | . . . . Projectile 3 | . . 3 . AOE 58 | . 27 31 . Terrain Rammed . | . . . . Walls Destroyed . | . . . . Machines Disabled . | . . . . Actions | -11 -10 -10 -9 --------- Run | Yrd Mat Min Mat Total 2170 | 197 726 1095 152 Wait 767 | 136 167 455 9 Move 1229 | 45 488 573 123 Hop . | . . . . Pick Up 23 | 2 11 8 2 Fast Attach 5 | 1 1 3 . Attach 4 | . . 2 2 Detach . | . . . . Swap 25 | 1 12 11 1 Drop 25 | . 12 11 2 Fire 80 | 12 35 32 1 Melee . | . . . . Ram . | . . . . Kick 12 | . . . 12 Crush . | . . . . Escape Stasis . | . . . . Rewire . | . . . . Trap . | . . . . Miscellaneous . | . . . . Route ------- -11/Scrapyard -10/Materials (discovered 5 exits: *Mat x3 / *Min x2) -10/Mines (discovered 2 exits: *Mat x2) -9/Materials (discovered 1 exit: Mat) History --------- Turn | Location | Event 1 | -11/Scrapyard | Discovered new exit (range 3) 232 | -11/Scrapyard | Entered Materials 249 | -10/Materials | Discovered new exit (range 15) 304 | -10/Materials | Build established: Mutant 371 | -10/Materials | Discovered new exit (range 7) 428 | -10/Materials | Discovered new exit (range 6) 641 | -10/Materials | Repaired Med. Laser 668 | -10/Materials | Repaired Ion Engine 701 | -10/Materials | Discovered new exit (range 16) 1020 | -10/Materials | Discovered new exit (range 10) 1120 | -10/Materials | Entered Mines 1191 | -10/Mines | Discovered new exit (range 12) 1193 | -10/Mines | Learned 4 Materials zone layouts 1256 | -10/Mines | Found a damaged Exp. Sensor Array with a note attached 1258 | -10/Mines | Found Prototype Device 1331 | -10/Mines | Met a Derelict who couldn't figure out how to use a Trap Extractor 1408 | -10/Mines | Excavation squad dispatched 1408 | -10/Mines | A large section of the Mines collapsed 1658 | -10/Mines | Excavation squad dispatched 1969 | -10/Mines | Received a Mining Laser from a helpful Derelict 2004 | -10/Mines | Learned location of Recycling (-7) 2026 | -10/Mines | A weapon hastily lodged in a ceiling crevice suddenly fell to the ground 2140 | -10/Mines | Core integrity fell below 50% 2246 | -10/Mines | Learned Materials stockpile data 2480 | -10/Mines | Build established: Scavenger-Mutant 2572 | -10/Mines | Discovered new exit (range 7) 2599 | -10/Mines | Entered Materials 2599 | -9/Materials | Evolved 2 slots: Propulsion x1, Utility x1 2600 | -9/Materials | Identified exit to Materials 2776 | -9/Materials | Core integrity fell below 50% 2787 | -9/Materials | Core integrity fell below 20% 2788 | -9/Materials | Destroyed by S-10 Pest with Light Assault Rifle Last Messages --------------- 02757_ Critical hit (Burn: +37). 02758_ Kicked G-34 Mercenary. 02758_ K-01 Serf collects debris. 02759_ Critical hit (Destroy). 02759_ Lgt. Angular Momentum Engine destroyed. 02759_ Kicked G-34 Mercenary out of the way. 02761_ Kicked G-34 Mercenary. 02761_ Aluminum Leg destroyed. 02762_ Kicked G-34 Mercenary. 02765_ Hvy. Battle Rifle destroyed. 02766_ Kicked G-34 Mercenary. 02770_ Shotgun destroyed. 02770_ R-06 Scavenger collects Flight Unit. 02771_ Kicked G-34 Mercenary. 02772_ G-34 Mercenary destroyed. 02773_ Acquired 7 matter. 02774_ R-06 Scavenger collects Lgt. Assault Rifle. 02775_ S-10 Pest destroyed. 02777_ Aluminum Leg destroyed. 02778_ K-01 Serf collects debris. Map ----- +----------------------------------------------------+ | ??????????????????# """ "?????????????????? | | ??????????????????# ?????????????????? | | ??????????????????#######?????????????????? | | ??????????????????????????????????????????? | | ????????????????#########?????????????????? | | ????????????????# ?[???????????????? | | ????????????????# """"" ?????????????????? | | ??????????????????????????????????????????? | | ??????????????????????????????????????????? | | ??????????????????????????????????????????? | | ??????? ??????????????????????????????? | | ??????? ??????????????????????????????? | | ??????# ??????????????????????????????? | | ??????? ??????????????????????????????? | | ??????? ???????##+##??????????????????? | | ???????# #???????# ??????????????????? | | ???????# #??????? g#??????????????????? | | ???????# #???????# #??????????????????? | | ???????# #???????# ^#??????????????????? | | ???????# #???????# #??????????????????? | | ???????# #???????# #??????????????????? | | ??????## ##?????## ##?????????????????? | | ??????# ###+### #?????????????????? | | ??????# Y # ""????????????? | | ??????# s %*% + ""????????????? | | ??????# s@ #?????????????????? | | ??????# ####### k #??????????????!??? | | ?####### ######### ##?????????????????? | | # # # ## g#??????????????????? | | # """ # # ## #??????????????????? | | # """ + / "" ## ?????????????????? | | # """ # # "T ## ????????????????? | | # # # "" ## ???????????????? | | ?#####?# # ## ??????????????? | | ?####### ################ ?????????????? | | # # ########???????? ????????????? | | # # # #????????? ????????????? | | # """ + + #???????????????????????? | | # """ # # #???????????????????????? | | # """ # # #???????????????????????? | | # # # #???????????????????????? | | ######## # #???????????????????????? | | ???????# ########???????????????????????? | | ???????# #??????????????????????????????? | | ######## ##########?????????????????????? | | # [# # #?????????????????????? | | # """ # # #?????????????????????? | | # """ # # #?????????????????????? | | # """ # # #?????????????????????? | | # # # """ #?????????????????????? | +----------------------------------------------------+ Best States ------------- Heat Dissipation 35 Energy Generation 18 Energy Capacity 250 Matter Stores 300 Matter Capacity 300 Sight Range 16 Terrain Scan Range 16 Terrain Scan Density 10 Armor Coverage 150 Evasion (%) 55 Targeting Accuracy 8 Item Schematics ----------------- None Robot Schematics ------------------ None Fabricated ------------ Nothing Repaired ---------- Med. Laser | 30% | -10/Materials Ion Engine | 73% | -10/Materials Studied --------- None Alien Tech Used ----------------- None Achievements -------------- None Challenges ------------ None Game ------ Seed UtilityTeslaSuit Manual? 0 Play Time 00:19:54 Cumulative 217.6 hours Start 2025.12.22 @ 22:19:58 End 2025.12.22 @ 22:39:14 Sessions 1 Manual Loads 0 Difficulty Rogue Special Mode None Game No. 163 Rogue 163 Adventurer 0 Explorer 0 Win Type - Total 13 Types 9/0/3/1/0/0/0/0/0/0 Lore% 80 Gallery% 67 Achievement% 39 Wizard Run 0 Options --------- Layout 0 ASCII 0 Keyboard 1 Movement Vi Keybinds 0 Fullscreen 2 Font 36/Smallcaps Map View 76x50 Zoom Use 0% Tactical HUD 1 Map Filters NONE Filters NONE Steam 1 RUN: dc114e1e-764e-425b-882a-b231ecbe2830